fUST/lending_fUST_20260127
["ID","MTS","AMOUNT","RATE_DAILY","PERIOD"]
[403657714,1769449840814,-600.53,0.00013698,2]
[403657716,1769449840823,-600.53,0.00013698,2]
[403657718,1769449840832,-600.53,0.00013698,2]
[403657719,1769449840842,-600.53,0.00013698,2]
[403657721,1769449840851,-600.53,0.00013698,2]
[403657723,1769449840860,-600.74568546,0.00013698,2]
[403657725,1769449840869,-500.0,0.00013698,2]
[403657727,1769449840879,-500.0,0.00013698,2]
[403657729,1769449840888,-500.0,0.00013698,2]
[403657731,1769449840898,-953.37907197,0.00013698,2]
[403657732,1769449840908,-477.12811929,0.00013698,2]
[403657733,1769449840918,-500.0,0.00013698,2]
[403657734,1769449840927,-500.0,0.00013698,2]
[403657735,1769449840937,-500.0,0.00013698,2]
[403657736,1769449840948,-500.0,0.00013698,2]
[403657737,1769449840958,-500.0,0.00013698,2]
[403657738,1769449840968,-500.0,0.00013698,2]
[403657739,1769449840978,-500.0,0.00013698,2]
[403657740,1769449840987,-282.825542,0.00013698,2]
[403657741,1769449840996,-154.20486829,0.00013698,2]
[403657742,1769449841007,-1000.0,0.00013699,2]
[403657743,1769449841016,-500.0,0.00013699,2]
[403657744,1769449841028,-501.29959982,0.00013699,2]
[403657745,1769449841039,-228.02056982,0.00013699,2]
[403657746,1769449841048,-500.0,0.00013699,2]
[403657747,1769449841057,-288.2,0.00013699,2]
[403657748,1769449841067,-300.01916849,0.00013699,2]
[403657749,1769449841076,-500.0,0.00013699,2]
[403657750,1769449841086,-158.2,0.00013699,2]
[403657751,1769449841096,-500.0,0.00013699,2]
[403657752,1769449841107,-2000.0,0.00013699,7]
[403657753,1769449841116,-500.0,0.00013699,2]
[403657754,1769449841125,-171.30774651,0.00013699,2]
[403657755,1769449841135,-298.46,0.000137,2]
[403657756,1769449841144,-500.0,0.00013821,2]
[403657757,1769449841153,-500.0,0.00013821,2]
[403657758,1769449841163,-504.66008898,0.00013821,2]
[403657759,1769449841173,-1000.0,0.00013821,2]
[403657760,1769449841182,-1000.0,0.00013821,2]
[403657761,1769449841193,-1000.0,0.00013821,2]
[403657762,1769449841203,-1000.0,0.00013821,2]
[403657763,1769449841213,-1000.0,0.00013821,2]
[403657764,1769449841223,-1000.0,0.00013973,2]
[403657765,1769449841232,-100000.0,0.0001399,2]
[403657766,1769449841242,-1000.0,0.00014189,2]
[403657767,1769449841251,-492.0,0.00014189,2]
[403657768,1769449841260,-600.0,0.00014221,2]
[403657769,1769449841269,-1000.0,0.00014247,2]
[403657770,1769449841279,-1000.0,0.00014247,2]
[403657771,1769449841288,-1000.0,0.00014247,2]
[403657772,1769449841298,-179.50812141,0.00014364,2]
[403657773,1769449841307,-1443.77363094,0.00014368,2]
[403657774,1769449841316,-1500.0,0.00014368,2]
[403657775,1769449841326,-1500.0,0.00014368,2]
[403657776,1769449841337,-1500.0,0.00014368,2]
[403657777,1769449841347,-1500.0,0.00014368,2]
[403657778,1769449841356,-1166.90309853,0.00014384,2]
[403657779,1769449841365,-477.21693589,0.00014501,2]
[403657780,1769449841375,-21582.27495747,0.00014629,2]
[403657781,1769449841384,-201.93286098,0.00014629,2]
[403657782,1769449841392,-500.0,0.00014629,2]
[403657783,1769449841402,-500.0,0.00014629,2]
[403657784,1769449841411,-500.0,0.00014629,2]
[403657785,1769449841421,-500.0,0.00014629,2]
[403657786,1769449841430,-500.0,0.00014629,2]
[403657787,1769449841439,-500.0,0.00014629,2]
[403657788,1769449841448,-500.0,0.00014629,2]
[403657789,1769449841458,-500.0,0.00014629,2]
[403657790,1769449841467,-500.0,0.00014629,2]
[403657791,1769449841477,-500.0,0.00014629,2]
[403657792,1769449841486,-500.0,0.00014629,2]
[403657793,1769449841495,-500.0,0.00014629,2]
[403657794,1769449841506,-2674.60743027,0.00014629,2]
[403657795,1769449841515,-553.64373807,0.00014629,2]
[403657796,1769449841525,-151.0,0.00014629,2]
[403657797,1769449841535,-201.93286099,0.00014654,2]
[403657798,1769449841544,-209.40437684,0.00014654,2]
[403657799,1769449841553,-217.15233878,0.00014654,2]
[403657800,1769449841562,-225.18697532,0.00014654,2]
[403657801,1769449841570,-233.51889341,0.00014654,2]
[403657802,1769449841579,-242.15909246,0.00014654,2]
[403657803,1769449841589,-251.11897888,0.00014654,2]
[403657804,1769449841599,-260.4103811,0.00014654,2]
[403657805,1769449841608,-270.0455652,0.00014654,2]
[403657806,1769449841617,-280.03725112,0.00014654,2]
[403657807,1769449841626,-151.0,0.00014654,2]
[403657808,1769449841635,-290.39862941,0.00014654,2]
[403657809,1769449841645,-301.1433787,0.00014654,2]
[403657810,1769449841654,-900.0,0.00014768,2]
[403657811,1769449841663,-954.33550312,0.00014795,2]
[403657812,1769449841671,-1461.62464944,0.00014795,2]
[403657813,1769449841680,-1500.0,0.00014795,2]
[403657814,1769449841690,-2258.0,0.00014814,2]
[403657815,1769449841699,-157.18983656,0.00014815,2]
[403657816,1769449841708,-178.92208645,0.00014815,2]
[403657817,1769449841717,-500.0,0.00014832,2]
[403657818,1769449841726,-455.03303428,0.000149,2]
[403657819,1769449841735,-455.03303428,0.000149,2]
[403657820,1769449841744,-455.03303428,0.000149,2]
[403657821,1769449841754,-2000.0,0.00014916,2]
[403657822,1769449841763,-2000.0,0.00014916,2]
[403657823,1769449841771,-2000.0,0.00014916,2]
[403657824,1769449841781,-2000.0,0.00014916,2]
[403657825,1769449841790,-2000.0,0.00014959,7]
[403657826,1769449841799,-470.09014898,0.00015,2]
[403657827,1769449841808,-846.16226816,0.00015,2]
[403657828,1769449841817,-1504.28847673,0.00015,2]
[403657829,1769449841826,-2350.45074489,0.00015,2]
[403657830,1769449841836,-377.6267198,0.00015,2]
[403657831,1769449841845,-679.72809564,0.00015,2]
[403657832,1769449841854,-1208.40550337,0.00015,2]
[403657833,1769449841863,-1888.13359901,0.00015,2]
[403657834,1769449841873,-1099.536109,0.00015068,2]
[403657835,1769449841882,-2773.56790519,0.00015177,2]
[403657836,1769449841892,-574.12855637,0.00015177,2]
[403657837,1769449841901,-3143.9152532,0.00015201,2]
[403657838,1769449841911,-151.0,0.00015202,2]
[403657839,1769449841921,-168.0,0.00015247,2]
[403657840,1769449841930,-1200.0,0.00015316,2]
[403657841,1769449841940,-10000.0,0.00015342,2]
[403657842,1769449841950,-10000.0,0.00015342,2]
[403657843,1769449841959,-2000.0,0.00015342,2]
[403657844,1769449841969,-9560.0719839,0.00015364,2]
[403657845,1769449841978,-168.0,0.00015381,2]
[403657846,1769449841988,-28136.25666903,0.000154,2]
[403657847,1769449841997,-1109004.43976463,0.000154,2]
[403657848,1769449842007,-2500.0,0.00015464,2]
[403657849,1769449842016,-2500.0,0.00015464,2]
[403657850,1769449842025,-2500.0,0.00015464,2]
[403657851,1769449842036,-2500.0,0.00015464,2]
[403657852,1769449842046,-1000.0,0.00015608,2]
[403657853,1769449842055,-791.0,0.00015608,2]
[403657854,1769449842064,-5000.0,0.0001564,2]
[403657855,1769449842074,-168.0,0.0001566,2]
[403657856,1769449842083,-1989.51146435,0.00015707,7]
[403657857,1769449842111,-4301.60073665,0.00015707,7]
[403657858,1769449842120,-2876.18991768,0.00015725,2]
[403657859,1769449842130,-595.37131296,0.00015725,2]
[403657860,1769449842140,-156.70093233,0.0001575,2]
[403657861,1769449842149,-174.376578,0.0001575,7]
[403657862,1769449842159,-177.919174,0.0001575,7]
[403657863,1769449842168,-386.242988,0.0001575,7]
[403657864,1769449842178,-168.0,0.0001577,2]
[403657865,1769449842189,-168.0,0.00015837,2]
[403657866,1769449842198,-606.527225,0.00015837,7]
[403657867,1769449842207,-393.63223956,0.00015864,2]
[403657868,1769449842216,-168.0,0.00015883,2]
[403657869,1769449842226,-2500.0,0.0001589,2]
[403657870,1769449842235,-168.0,0.0001591,2]
[403657871,1769449842244,-629.0,0.00015974,2]
[403657872,1769449842253,-1368.0,0.00015974,2]
[403657873,1769449842263,-418.0,0.00015974,2]
[403657874,1769449842272,-2150.0,0.00015974,2]
[403657875,1769449842282,-179.001,0.00015974,2]
[403657876,1769449842291,-2097.731585,0.00016,7]
[403657877,1769449842300,-216.19111231,0.00016,2]
[403657878,1769449842309,-3000.0,0.00016,2]
[403657879,1769449842318,-1446.856389,0.00016,2]
[403657880,1769449842327,-410.08,0.00016,7]
[403657881,1769449842337,-179.91004498,0.00016008,2]
[403657882,1769449842346,-3000.0,0.0001601,2]
[403657883,1769449842355,-3000.0,0.00016012,2]
[403657884,1769449842364,-1355.419529,0.00016012,2]
[403657885,1769449842373,-3000.0,0.00016012,2]
[403657886,1769449842382,-3000.0,0.00016012,2]
[403657887,1769449842391,-3000.0,0.0001602,2]
[403657888,1769449842400,-168.0,0.00016026,2]
[403657889,1769449842409,-3000.0,0.0001603,2]
[403657890,1769449842418,-168.0,0.00016033,2]
[403657891,1769449842427,-168.0,0.00016036,2]
[403657892,1769449842436,-3000.0,0.0001604,2]
[403657893,1769449842445,-3000.0,0.0001605,2]
[403657894,1769449842454,-3000.0,0.0001606,2]
[403657895,1769449842464,-3000.0,0.0001607,2]
[403657896,1769449842474,-3000.0,0.0001608,2]
[403657897,1769449842483,-629.11122,0.0001608,7]
[403657898,1769449842496,-3000.0,0.0001609,2]
[403657899,1769449842509,-3000.0,0.000161,2]
[403657900,1769449842518,-254.0,0.0001611,3]
[403657901,1769449842527,-3000.0,0.0001611,2]
[403657902,1769449842536,-3000.0,0.0001612,2]
[403657903,1769449842545,-3000.0,0.0001613,2]
[403657904,1769449842556,-3000.0,0.0001614,2]
[403657905,1769449842567,-3000.0,0.0001615,2]
[403657906,1769449842577,-3000.0,0.0001616,2]
[403657907,1769449842586,-3000.0,0.0001617,2]
[403657908,1769449842596,-3000.0,0.0001618,2]
[403657909,1769449842615,-168.0,0.00016181,2]
[403657910,1769449842624,-3000.0,0.0001619,2]
[403657911,1769449842634,-3000.0,0.000162,2]
[403657912,1769449842644,-3000.0,0.0001621,2]
[403657913,1769449842653,-2000.0,0.00016219,7]
[403657914,1769449842662,-3000.0,0.0001622,2]
[403657915,1769449842671,-3411.715641,0.0001622,7]
[403657916,1769449842680,-3000.0,0.0001623,2]
[403657917,1769449842689,-3000.0,0.0001624,2]
[403657918,1769449842699,-278.845767,0.0001624,7]
[403657919,1769449842708,-3000.0,0.0001625,2]
[403657920,1769449842717,-3000.0,0.0001626,2]
[403657921,1769449842726,-3000.0,0.0001627,2]
[403657922,1769449842735,-2982.60894464,0.00016273,2]
[403657923,1769449842745,-617.40005154,0.00016273,2]
[403657925,1769449842754,-3000.0,0.0001628,2]
[403657926,1769449842763,-168.0,0.00016288,2]
[403657927,1769449842771,-3000.0,0.0001629,2]
[403657928,1769449842780,-742.0,0.00016295,2]
[403657929,1769449842788,-3000.0,0.000163,2]
[403657931,1769449842797,-3000.0,0.0001631,2]
[403657933,1769449842806,-3000.0,0.0001632,2]
[403657934,1769449842814,-3000.0,0.0001633,2]
[403657935,1769449842823,-3000.0,0.0001634,2]
[403657936,1769449842832,-168.0,0.00016342,2]
[403657937,1769449842982,-3000.0,0.0001635,2]
[403657938,1769449842995,-3000.0,0.0001636,2]
[403657939,1769449843017,-3000.0,0.0001637,2]
[403657940,1769449843029,-3000.0,0.0001638,2]
[403657941,1769449843038,-3000.0,0.0001639,2]
[403657942,1769449843047,-150.0,0.00016394,2]
[403657943,1769449843056,-3000.0,0.000164,2]
[403657944,1769449843068,-3000.0,0.0001641,2]
[403657945,1769449843077,-3000.0,0.0001642,2]
[403657947,1769449843086,-3000.0,0.0001643,2]
[403657948,1769449843095,-250.0,0.00016438,2]
[403657949,1769449843104,-151.0,0.00016438,2]
[403657950,1769449843115,-151.0,0.00016438,2]
[403657951,1769449843123,-151.0,0.00016438,2]
[403657952,1769449843133,-151.0,0.00016438,2]
[403657953,1769449843142,-502.323012,0.00016438,2]
[403657954,1769449843152,-502.323012,0.00016438,2]
[403657955,1769449843162,-502.323012,0.00016438,2]
[403657956,1769449843171,-502.323012,0.00016438,2]
[403657957,1769449843180,-151.0,0.00016438,2]
[403657958,1769449843190,-164.53752599,0.00016438,2]
[403657959,1769449843202,-3000.0,0.00016438,2]
[403657960,1769449843211,-3000.0,0.0001644,2]
[403657961,1769449843220,-185.09,0.0001644,2]
[403657962,1769449843229,-185.09,0.0001644,2]
[403657963,1769449843238,-185.09,0.0001644,2]
[403657964,1769449843247,-3000.0,0.0001645,2]
[403657965,1769449843257,-184.03,0.00016454,2]
[403657966,1769449843266,-3000.0,0.0001646,2]
[403657967,1769449843276,-3000.0,0.0001647,2]
[403657968,1769449843285,-168.0,0.00016472,2]
[403657969,1769449843296,-200.0,0.00016473,2]
[403657970,1769449843304,-3000.0,0.0001648,2]
[403657971,1769449843313,-184.01,0.00016486,2]
[403657972,1769449843323,-3000.0,0.0001649,2]
[403657973,1769449843332,-3000.0,0.000165,2]
[403657974,1769449843342,-1000.0,0.000165,2]
[403657975,1769449843351,-532.99553879,0.00016501,2]
[403657976,1769449843360,-497.48189141,0.0001656,2]
[403657977,1769449843369,-500.0,0.0001656,2]
[403657978,1769449843378,-3500.0,0.0001656,2]
[403657979,1769449843387,-168.0,0.00016653,2]
[403657980,1769449843396,-164.34495881,0.0001666,2]
[403657981,1769449843404,-3092.96547559,0.00016821,2]
[403657982,1769449843413,-271.02720181,0.00016821,2]
[403657983,1769449843423,-500.0,0.00016837,2]
[403657984,1769449843433,-168.0,0.0001687,2]
[403657985,1769449843442,-1633.69737643,0.00016962,7]
[403657986,1769449843451,-1797.460628,0.00016964,7]
[403657987,1769449843461,-3500.0,0.00016986,2]
[403657988,1769449843470,-84305.41459877,0.00017,2]
[403657989,1769449843479,-263.417628,0.00017,2]
[403657990,1769449843488,-263.417628,0.00017,2]
[403657991,1769449843497,-263.417628,0.00017,2]
[403657992,1769449843506,-263.417628,0.00017,2]
[403657993,1769449843517,-151.0,0.00017,2]
[403657994,1769449843529,-151.0,0.00017,2]
[403657995,1769449843539,-151.0,0.00017,2]
[403657996,1769449843549,-151.0,0.00017,2]
[403657997,1769449843560,-151.0,0.00017,2]
[403657998,1769449843570,-1000.0,0.00017,2]
[403657999,1769449843579,-502.323012,0.00017,2]
[403658000,1769449843589,-502.323012,0.00017,2]
[403658001,1769449843600,-502.323012,0.00017,2]
[403658002,1769449843609,-502.323012,0.00017,2]
[403658003,1769449843618,-151.0,0.00017,2]
[403658004,1769449843628,-173.293493,0.00017104,7]
[403658005,1769449843637,-4000.0,0.00017108,2]
[403658006,1769449843647,-1000.0,0.00017168,2]
[403658007,1769449843656,-1000.0,0.00017168,2]
[403658008,1769449843670,-184.03,0.00017268,2]
[403658009,1769449843685,-599.351881,0.0001728,7]
[403658010,1769449843694,-2081.94,0.00017353,2]
[403658011,1769449843704,-179.746063,0.00017366,7]
[403658012,1769449843713,-3207.40519818,0.00017369,2]
[403658013,1769449843722,-397.0,0.0001742,2]
[403658014,1769449843733,-1317.31906642,0.00017477,7]
[403658015,1769449843742,-2000.0,0.00017479,7]
[403658016,1769449843751,-50000.0,0.000175,2]
[403658017,1769449843760,-150205.85807842,0.000175,3]
[403658018,1769449843769,-1000.0,0.000175,2]
[403658019,1769449843778,-9560.07198382,0.0001751,2]
[403658020,1769449843787,-974.775897,0.00017518,7]
[403658021,1769449843798,-4000.0,0.00017534,2]
[403658022,1769449843809,-476.0,0.00017564,2]
[403658023,1769449843818,-2140.72042613,0.000176,2]
[403658024,1769449843827,-400.0,0.000176,2]
[403658025,1769449843837,-1500.0,0.00017656,2]
[403658026,1769449843846,-555.0,0.00017713,2]
[403658027,1769449843855,-150.0,0.00017808,2]
[403658028,1769449843864,-281.66552966,0.00017842,2]
[403658029,1769449843873,-3326.07919052,0.00017917,2]
[403658030,1769449843882,-97657.5511351,0.00018,2]
[403658031,1769449843898,-15000.0,0.00018,2]
[403658033,1769449844709,-1957.856,0.00014629,2]
[403658034,1769449844718,-668.65185757,0.00014629,2]
[403658035,1769449844727,-543.96801978,0.00014684,2]
[403658036,1769449844736,-7192.52954656,0.00018,2]
[403658047,1769449846276,-13270.46386162,0.00018,2]
[403658048,1769449846287,-1975.1610861,0.00018,2]
[403658049,1769449846331,-442.41826624,0.00018,2]
[403658394,1769450717952,2436.95,0.00034686,120]
[403660199,1769451032183,-298.45214403,8.116e-05,2]
[403660200,1769451032193,-534.0,8.116e-05,2]
[403660201,1769451032202,-282.06637894,8.433e-05,2]
[403660202,1769451032235,-17.93362106,8.433e-05,2]
[403660203,1769451032244,-300.0,8.433e-05,2]
[403660204,1769451032253,-300.0,8.433e-05,2]
[403660205,1769451032263,-300.0,8.433e-05,2]
[403660206,1769451032273,-300.0,8.433e-05,2]
[403660207,1769451032283,-1200.0,8.433e-05,2]
[403660208,1769451032292,-182.06637894,8.434e-05,2]
[403660209,1769451032303,-2750.0,8.434e-05,2]
[403660219,1769451038368,-23800.95712851,8.434e-05,2]
[403660220,1769451038421,-1286.98751209,8.434e-05,2]
[403660221,1769451038476,-971979.98898046,8.434e-05,2]
[403660222,1769451038486,-205.291,8.531e-05,2]
[403660223,1769451038496,-500.0,8.533e-05,2]
[403660224,1769451038506,-50000.0,8.533e-05,2]
[403660225,1769451038516,-500.0,8.533e-05,2]
[403660226,1769451038525,-500.0,8.533e-05,2]
[403660227,1769451038534,-500.0,8.533e-05,2]
[403660228,1769451038543,-500.0,8.533e-05,2]
[403660229,1769451038553,-500.0,8.533e-05,2]
[403660230,1769451038563,-500.0,8.533e-05,2]
[403660231,1769451038572,-500.0,8.533e-05,2]
[403660232,1769451038582,-500.0,8.533e-05,2]
[403660233,1769451038591,-500.0,8.533e-05,2]
[403660234,1769451038600,-500.0,8.533e-05,2]
[403660235,1769451038610,-500.0,8.533e-05,2]
[403660236,1769451038619,-500.0,8.533e-05,2]
[403660237,1769451038630,-500.0,8.533e-05,2]
[403660238,1769451038639,-500.0,8.533e-05,2]
[403660239,1769451038649,-500.0,8.533e-05,2]
[403660240,1769451038659,-500.0,8.533e-05,2]
[403660241,1769451038669,-500.0,8.533e-05,2]
[403660242,1769451038679,-500.0,8.533e-05,2]
[403660243,1769451038688,-500.0,8.533e-05,2]
[403660244,1769451038698,-500.0,8.533e-05,2]
[403660245,1769451038708,-500.0,8.533e-05,2]
[403660246,1769451038718,-500.0,8.533e-05,2]
[403660247,1769451038727,-159.93992275,8.533e-05,2]
[403660248,1769451038737,-500.0,8.533e-05,2]
[403660249,1769451038746,-500.0,8.533e-05,2]
[403660250,1769451038755,-500.0,8.533e-05,2]
[403660251,1769451038765,-500.0,8.533e-05,2]
[403660252,1769451038774,-500.0,8.533e-05,2]
[403660253,1769451038784,-500.0,8.533e-05,2]
[403660254,1769451038794,-500.0,8.533e-05,2]
[403660255,1769451038804,-500.0,8.533e-05,2]
[403660256,1769451038814,-500.0,8.533e-05,2]
[403660257,1769451038824,-417.8452753,8.533e-05,2]
[403660258,1769451038834,-500.0,8.533e-05,2]
[403660259,1769451038844,-500.0,8.533e-05,2]
[403660260,1769451038853,-500.0,8.533e-05,2]
[403660261,1769451038863,-500.0,8.533e-05,2]
[403660262,1769451038874,-500.0,8.533e-05,2]
[403660263,1769451038884,-517.61551041,8.533e-05,2]
[403660264,1769451038894,-500.0,8.533e-05,2]
[403660265,1769451038903,-500.0,8.533e-05,2]
[403660266,1769451038913,-500.0,8.533e-05,2]
[403660267,1769451038923,-500.0,8.533e-05,2]
[403660268,1769451038933,-351.59943937,8.533e-05,2]
[403660269,1769451038943,-500.0,8.533e-05,2]
[403660270,1769451038952,-500.0,8.533e-05,2]
[403660271,1769451038962,-430.81607952,8.533e-05,2]
[403660272,1769451038972,-500.0,8.533e-05,2]
[403660273,1769451038983,-500.0,8.533e-05,2]
[403660274,1769451038992,-500.0,8.533e-05,2]
[403660275,1769451039003,-500.0,8.533e-05,2]
[403660276,1769451039013,-500.0,8.533e-05,2]
[403660277,1769451039023,-500.0,8.533e-05,2]
[403660278,1769451039034,-500.0,8.533e-05,2]
[403660279,1769451039043,-500.0,8.533e-05,2]
[403660280,1769451039053,-478.73989375,8.533e-05,2]
[403660281,1769451039063,-500.0,8.533e-05,2]
[403660282,1769451039074,-439.45930473,8.533e-05,2]
[403660283,1769451039083,-181.30559947,8.535e-05,2]
[403660284,1769451039093,-270.55954263,8.535e-05,2]
[403660285,1769451039103,-300.0,8.704e-05,2]
[403660286,1769451039114,-300.0,8.704e-05,2]
[403660287,1769451039124,-300.0,8.704e-05,2]
[403660288,1769451039134,-300.0,8.704e-05,2]
[403660289,1769451039144,-300.0,8.704e-05,2]
[403660290,1769451039155,-300.0,8.704e-05,2]
[403660291,1769451039165,-300.0,8.704e-05,2]
[403660292,1769451039174,-300.0,8.704e-05,2]
[403660293,1769451039185,-300.0,8.704e-05,2]
[403660294,1769451039194,-300.0,8.704e-05,2]
[403660295,1769451039204,-300.0,8.704e-05,2]
[403660296,1769451039214,-300.0,8.704e-05,2]
[403660297,1769451039223,-300.0,8.704e-05,2]
[403660298,1769451039233,-300.0,8.704e-05,2]
[403660299,1769451039242,-300.0,8.704e-05,2]
[403660300,1769451039252,-6909.72990456,8.704e-05,2]
[403660301,1769451039261,-600.0,8.706e-05,2]
[403660302,1769451039271,-500.0,8.807e-05,2]
[403660303,1769451039281,-500.0,9.081e-05,2]
[403660304,1769451039291,-164.0,9.276e-05,2]
[403660305,1769451039300,-420.0,9.276e-05,2]
[403660306,1769451039310,-420.0,9.276e-05,2]
[403660307,1769451039321,-300.0,9.276e-05,2]
[403660308,1769451039330,-1680.0,9.276e-05,2]
[403660309,1769451039340,-720.0,9.576e-05,2]
[403660310,1769451039351,-352.17352996,0.00010116,2]
[403660311,1769451039362,-587.0,0.00010204,2]
[403660312,1769451039372,-467.0,0.00010204,2]
[403660313,1769451039383,-2351.0,0.00010204,2]
[403660314,1769451039393,-864.0,0.00010534,2]
[403660315,1769451039404,-339.66,0.00011018,2]
[403660316,1769451039413,-300.41,0.00011104,2]
[403660317,1769451039423,-171.74,0.00011104,2]
[403660318,1769451039436,-171.74,0.00011104,2]
[403660319,1769451039446,-171.74,0.00011104,2]
[403660320,1769451039455,-171.74,0.00011104,2]
[403660321,1769451039465,-171.74,0.00011104,2]
[403660322,1769451039475,-171.75,0.00011104,2]
[403660323,1769451039484,-339.65547154,0.00011118,2]
[403660324,1769451039494,-300.41429824,0.00011204,2]
[403660325,1769451039503,-823.0,0.00011224,2]
[403660326,1769451039707,-988.0,0.00011224,2]
[403660327,1769451039718,-1000.0,0.00011588,2]
[403660328,1769451039731,-528.67656805,0.00012042,2]
[403660329,1769451039741,-150.0,0.00012055,2]
[403660330,1769451039750,-500.0,0.00012055,2]
[403660331,1769451039760,-500.0,0.00012055,2]
[403660332,1769451039771,-405.89491588,0.00012116,2]
[403660333,1769451039780,-150.0,0.00012192,2]
[403660334,1769451039790,-500.0,0.00012192,2]
[403660335,1769451039799,-500.0,0.00012192,2]
[403660336,1769451039809,-500.0,0.00012198,2]
[403660337,1769451039818,-252.58455363,0.00012198,2]
[403660338,1769451039827,-500.0,0.00012198,2]
[403660339,1769451039837,-150.0,0.00012198,2]
[403660340,1769451039846,-500.0,0.00012198,2]
[403660341,1769451039855,-500.0,0.00012198,2]
[403660342,1769451039865,-500.0,0.00012198,2]
[403660343,1769451039874,-500.0,0.00012198,2]
[403660344,1769451039884,-150.0,0.00012198,2]
[403660345,1769451039893,-500.0,0.00012198,2]
[403660346,1769451039903,-500.0,0.00012198,2]
[403660347,1769451039913,-500.0,0.00012198,2]
[403660348,1769451039923,-267.0,0.00012329,2]
[403660349,1769451039932,-222.5,0.00012329,2]
[403660350,1769451039942,-185.41,0.00012329,2]
[403660351,1769451039951,-154.51,0.00012329,2]
[403660352,1769451039960,-772.58,0.00012329,2]
[403660353,1769451039969,-150.0,0.00012329,2]
[403660354,1769451039979,-500.0,0.00012329,2]
[403660355,1769451039988,-450.0,0.00012329,2]
[403660356,1769451039998,-500.0,0.00012335,2]
[403660357,1769451040008,-500.0,0.00012335,2]
[403660358,1769451040018,-150.0,0.00012335,2]
[403660359,1769451040027,-500.0,0.00012335,2]
[403660360,1769451040036,-500.0,0.00012335,2]
[403660361,1769451040046,-500.0,0.00012335,2]
[403660362,1769451040055,-500.0,0.00012335,2]
[403660363,1769451040064,-150.0,0.00012335,2]
[403660364,1769451040074,-500.0,0.00012335,2]
[403660365,1769451040083,-500.0,0.00012335,2]
[403660366,1769451040093,-500.0,0.00012335,2]
[403660367,1769451040102,-1152.0,0.00012347,2]
[403660368,1769451040111,-150.0,0.00012466,2]
[403660369,1769451040121,-500.0,0.00012466,2]
[403660370,1769451040130,-500.0,0.00012472,2]
[403660371,1769451040139,-500.0,0.00012472,2]
[403660372,1769451040149,-150.0,0.00012472,2]
[403660373,1769451040158,-500.0,0.00012472,2]
[403660374,1769451040167,-500.0,0.00012472,2]
[403660375,1769451040176,-203.37170978,0.00012472,2]
[403660376,1769451040186,-500.0,0.00012472,2]
[403660377,1769451040195,-200.98832221,0.00012472,2]
[403660378,1769451040204,-500.0,0.00012472,2]
[403660379,1769451040213,-500.0,0.00012472,2]
[403660380,1769451040222,-500.0,0.00012472,2]
[403660381,1769451040231,-150.0,0.00012472,2]
[403660382,1769451040240,-150.0,0.00012472,2]
[403660383,1769451040250,-150.0,0.00012472,2]
[403660384,1769451040259,-150.0,0.00012472,2]
[403660385,1769451040269,-500.0,0.00012472,2]
[403660386,1769451040280,-500.0,0.00012472,2]
[403660387,1769451040291,-500.0,0.00012472,2]
[403660388,1769451040301,-164.59981825,0.00012603,2]
[403660389,1769451040311,-500.0,0.00012603,2]
[403660390,1769451040323,-951.61782249,0.00012604,2]
[403660391,1769451040334,-500.0,0.00012609,2]
[403660392,1769451040343,-500.0,0.00012609,2]
[403660393,1769451040355,-257.53367083,0.00012609,2]